bitfinex-derivatives/quotes_BNBF0:USTF0_20250908
["timestamp","ask_amount","ask_price","bid_price","bid_amount"]
[1757338586112,0.19735443,883.91,882.42,0.76104786]
[1757338586612,0.19735443,883.91,882.43,0.76104786]
[1757338587209,0.19735443,883.91,882.47,0.76104786]
[1757338587811,0.19735443,883.91,882.46,0.76104786]
[1757338592216,0.19735443,883.91,882.45,0.76104786]
[1757338592616,0.19735443,883.91,882.46,0.76104786]
[1757338592813,0.19735443,883.91,882.45,0.76104786]
[1757338593913,0.19735443,883.91,882.46,0.76104786]
[1757338595813,0.19735443,883.91,882.47,0.76104786]
[1757338597418,0.19735443,883.91,882.44,0.76104786]
[1757338597612,0.19735443,883.91,882.45,0.76104786]
[1757338597816,0.19735443,883.91,882.44,0.76104786]
[1757338598813,0.19735443,883.91,882.42,0.76104786]
[1757338600319,0.19735443,883.91,882.42,2.28042854]
[1757338604718,0.19735443,883.91,882.42,3.29337647]
[1757338605322,0.19735443,883.91,882.38,3.29337647]
[1757338610729,0.19735443,883.91,882.37,3.29337647]
[1757338611326,0.19735443,883.91,882.38,3.29337647]
[1757338612528,0.19735443,883.91,882.39,3.29337647]
[1757338618725,1.01735896,884.54,882.38,3.09603995]
[1757338618929,1.01735896,884.5,882.32,3.09603995]
[1757338619229,1.01735896,884.45,882.27,2.28042854]
[1757338619631,1.01735896,884.46,882.27,2.28042854]
[1757338619926,1.01735896,884.45,882.27,2.28042854]
[1757338621132,1.01735896,884.49,882.27,2.28042854]
[1757338621430,1.01735896,884.44,882.22,2.28042854]
[1757338621631,1.01735896,884.43,882.21,2.28042854]
[1757338621929,0.19735891,883.94,882.21,2.28042854]
[1757338624531,0.19735891,883.94,882.22,2.28042854]
[1757338624927,0.19735891,883.94,882.23,2.28042854]
[1757338625433,0.19735891,883.94,882.26,2.28042854]
[1757338626531,0.19735891,883.94,882.29,2.28042854]
[1757338626736,0.19735891,883.94,882.32,2.28042854]
[1757338627331,0.19735891,883.94,882.33,2.28042854]
[1757338627536,0.19735891,883.94,882.32,2.28042854]
[1757338628136,0.19735891,883.94,882.33,2.28042854]
[1757338628339,0.19735891,883.94,882.38,2.28042854]
[1757338628537,0.19735891,883.94,882.53,2.28042854]
[1757338634142,0.19735891,883.94,882.52,2.28042854]
[1757338634448,0.19735891,883.94,882.46,2.28042854]
[1757338635743,0.19735891,883.94,882.45,2.28042854]
[1757338635947,0.19735891,883.94,882.44,2.28042854]
[1757338636248,0.19735891,883.94,882.42,2.28042854]
[1757338636548,0.19735891,883.94,882.37,2.28042854]
[1757338636748,0.19735891,883.94,882.39,2.28042854]
[1757338637043,0.19735891,883.94,882.38,2.28042854]
[1757338637344,0.19735891,883.94,882.39,2.28042854]
[1757338638043,0.19735891,883.94,882.38,2.28042854]
[1757338638648,0.19735891,883.94,882.39,2.28042854]
[1757338639349,0.19735891,883.94,882.4,2.28042854]
[1757338639747,0.19735891,883.94,882.42,2.28042854]
[1757338640451,0.19735891,883.94,882.49,2.28042854]
[1757338641249,0.19735891,883.94,882.5,2.28042854]
[1757338641553,0.19735891,883.94,882.62,2.28042854]
[1757338642451,0.19735891,883.94,882.71,2.28042854]
[1757338645754,0.19735891,883.94,882.72,2.28042854]
[1757338646456,0.19735891,883.94,882.79,2.28042854]
[1757338646854,0.19735891,883.94,882.8,2.28042854]
[1757338647457,0.19735891,883.94,882.82,2.28042854]
[1757338647958,0.19735891,883.94,882.83,2.28042854]
[1757338648658,0.19735891,883.94,882.92,2.28042854]
[1757338648855,0.19735891,883.94,882.93,3.29438508]
[1757338649260,0.19735891,883.94,882.92,3.29438508]
[1757338651964,0.19735891,883.94,882.92,3.29285615]
[1757338653462,0.19735891,883.94,882.97,3.29285615]
[1757338653662,0.19735891,883.94,882.98,3.29285615]
[1757338654966,0.19735891,883.94,882.99,3.29285615]
[1757338657262,0.19735891,883.94,882.98,3.29285615]
[1757338657466,0.19735891,883.94,882.96,3.29285615]
[1757338658366,0.19735891,883.94,882.96,1.77347547]
[1757338658564,0.19735891,883.94,882.95,3.29285615]
[1757338658768,0.19735891,883.94,882.91,3.29285615]
[1757338659167,0.19735891,883.94,882.9,3.29285615]
[1757338659466,0.19735891,883.94,882.77,3.29285615]
[1757338659667,1.01735896,885.02,882.77,3.09562196]
[1757338659867,1.01735896,885.03,882.78,2.53333722]
[1757338660072,1.01735896,885.01,882.77,2.53333722]
[1757338660366,1.01735896,885.0,882.74,2.53333722]
[1757338660967,1.01735896,884.99,882.74,2.53333722]
[1757338661270,1.01735896,884.88,882.72,2.53333722]
[1757338661468,1.01735896,884.88,878.59,10.143497]
[1757338661469,1.01735896,884.88,882.66,2.53333722]
[1757338662266,1.01735896,884.87,882.65,2.53333722]
[1757338662470,1.01735896,884.83,882.61,2.53333722]
[1757338662670,0.1972599,884.33,882.61,2.53333722]
[1757338663868,0.1972599,884.33,882.62,2.53333722]
[1757338664073,0.1972599,884.33,882.63,2.53333722]
[1757338665573,0.1972599,884.33,882.62,2.53333722]
[1757338665871,0.1972599,884.33,882.63,2.53333722]
[1757338666573,0.1972599,884.33,882.65,2.53333722]
[1757338670576,0.1972599,884.33,882.77,2.53333722]
[1757338671780,0.1972599,884.33,882.78,2.53333722]
[1757338672075,0.1972599,884.33,882.8,2.53333722]
[1757338676277,0.1972599,884.33,882.79,2.53333722]
[1757338684880,0.1972599,884.33,882.74,2.53333722]
[1757338685176,0.1972599,884.33,882.67,2.53333722]
[1757338685580,0.1972599,884.33,882.66,2.53333722]
[1757338686876,0.1972599,884.33,882.65,2.53333722]
[1757338687482,0.1972599,884.33,882.64,2.53333722]
[1757338688482,0.1972599,884.33,882.57,2.53333722]
[1757338689383,0.1972599,884.33,882.56,2.53333722]
[1757338689682,0.1972599,884.33,882.57,2.53333722]
[1757338690083,0.1972599,884.33,882.58,2.53333722]
[1757338691479,0.1972599,884.33,882.57,2.53333722]
[1757338691683,0.1972599,884.33,882.56,2.53333722]
[1757338692381,0.1972599,884.33,882.57,2.53333722]
[1757338699383,0.1972599,884.33,882.58,2.53333722]
[1757338703594,0.1972599,884.33,882.59,2.53333722]
[1757338704091,0.1972599,884.33,882.66,2.53333722]
[1757338704996,0.1972599,884.33,882.68,2.53333722]
[1757338706196,0.1972599,884.33,882.73,2.53333722]
[1757338707492,0.1972599,884.33,882.71,2.53333722]
[1757338708197,0.1972599,884.33,882.7,2.53333722]
[1757338708396,0.1972599,884.33,882.63,2.53333722]
[1757338708595,0.1972599,884.33,882.62,2.53333722]
[1757338711095,0.1972599,884.33,882.6,2.53333722]
[1757338711601,0.1972599,884.33,882.61,2.53333722]
[1757338713301,0.1972599,884.33,882.13,2.5227016]
[1757338713302,0.1972599,884.33,882.59,2.53333722]
[1757338715999,0.1972599,884.33,882.58,2.53333722]
[1757338718403,0.1972599,884.33,882.57,2.53333722]
[1757338718906,0.1972599,884.33,882.56,2.53333722]
[1757338719706,0.1972599,884.33,882.56,3.29593179]
[1757338720505,0.1972599,884.33,882.53,3.29593179]
[1757338722505,0.1972599,884.33,882.51,3.29593179]
[1757338722708,1.01735896,884.25,882.41,3.29593179]
[1757338722904,0.1972599,884.33,882.39,3.29593179]
[1757338723409,0.1972599,884.33,882.34,3.29593179]
[1757338723809,0.1972599,884.33,882.33,3.29593179]
[1757338724410,0.1972599,884.33,882.34,3.29593179]
[1757338724609,0.1972599,884.33,882.33,3.29593179]
[1757338724806,0.1972599,884.33,882.32,3.29593179]
[1757338725509,0.1972599,884.33,882.31,3.29593179]
[1757338725712,1.01735896,884.2,882.3,3.29593179]
[1757338725908,1.01735896,884.13,882.23,3.29593179]
[1757338726107,1.01735896,884.09,882.19,3.29593179]
[1757338726308,1.01735896,884.08,882.17,3.29593179]
[1757338726712,1.01735896,884.07,882.16,3.29593179]
[1757338726912,1.01735896,884.09,882.16,3.29593179]
[1757338727212,1.01735896,884.11,882.16,3.29593179]
[1757338728110,1.01735896,884.09,882.16,3.29593179]
[1757338728409,1.01735896,884.04,882.08,3.29593179]
[1757338728811,1.01735896,883.92,882.02,3.29593179]
[1757338729109,1.01735896,883.87,881.96,3.29593179]
[1757338729315,1.01735896,883.92,881.96,3.29593179]
[1757338729711,1.01735896,884.07,881.96,3.29593179]
[1757338729912,1.01735896,884.04,881.93,3.29593179]
[1757338730112,1.01735896,884.06,881.93,3.29593179]
[1757338730412,1.01735896,884.01,881.92,3.29593179]
[1757338731317,1.01735896,884.05,881.92,3.29593179]
[1757338732118,1.01735896,884.03,881.92,3.29593179]
[1757338732317,1.01735896,884.06,881.92,3.29593179]
[1757338732617,1.01735896,884.06,881.91,3.29593179]
[1757338732814,1.01735896,884.17,881.85,3.29593179]
[1757338733018,1.01735896,884.09,881.77,3.29593179]
[1757338733218,1.01735896,884.12,881.74,3.29593179]
[1757338733619,1.01735896,884.11,881.74,3.29593179]
[1757338733815,1.01735896,884.12,881.74,3.29593179]
[1757338734220,1.01735896,884.09,881.73,3.29593179]
[1757338734418,1.01735896,884.01,881.67,3.29593179]
[1757338735317,1.01735896,884.05,881.67,3.29593179]
[1757338735820,1.01735896,884.02,881.65,3.29593179]
[1757338736020,1.01735896,883.98,881.65,3.29593179]
[1757338736217,1.01735896,883.9,881.65,3.29593179]
[1757338736421,1.01735896,883.94,881.65,3.29593179]
[1757338736624,1.01735896,884.11,881.65,3.29593179]
[1757338736821,1.01735896,884.12,881.65,3.29593179]
[1757338737220,1.01735896,884.13,881.65,3.29593179]
[1757338737621,0.1972599,884.33,881.65,3.29593179]
[1757338737622,1.01735896,884.14,881.65,3.29593179]
[1757338738320,1.01735896,884.32,881.64,1.77655111]
[1757338739224,0.1972599,884.33,881.63,1.77655111]
[1757338739923,0.1972599,884.33,881.62,1.77655111]
[1757338740128,1.21461886,884.33,881.62,1.77655111]
[1757338740327,1.01735896,884.27,881.62,1.77655111]
[1757338741125,1.01735896,884.32,881.62,1.77655111]
[1757338741324,1.01735896,884.19,881.54,1.77655111]
[1757338741526,0.1972599,884.33,881.55,1.77655111]
[1757338741726,1.01735896,884.29,881.55,1.77655111]
[1757338741927,1.01735896,884.05,881.56,3.29593179]
[1757338742126,1.01735896,884.06,881.56,3.29593179]
[1757338742327,1.01735896,884.09,881.57,2.53333722]
[1757338742523,1.01735896,884.09,881.57,3.29593179]
[1757338743026,1.01735896,884.1,881.58,3.29593179]
[1757338743223,1.01735896,884.09,881.57,3.29593179]
[1757338743428,1.01735896,884.08,881.58,3.29593179]
[1757338743630,1.01735896,884.1,881.58,3.29593179]
[1757338744530,1.01735896,884.09,881.58,3.29593179]
[1757338744729,0.1972599,884.33,881.63,1.77655111]
[1757338744939,0.1972599,884.33,881.63,0.76259457]
[1757338745225,0.1972599,884.33,881.64,0.76259457]
[1757338745525,0.1972599,884.33,881.63,0.76259457]
[1757338745729,0.1972599,884.33,881.64,0.76259457]
[1757338745926,0.1972599,884.33,881.63,1.77655111]
[1757338746526,0.1972599,884.33,881.63,0.76259457]
[1757338746826,0.1972599,884.33,881.62,1.77655111]
[1757338747226,0.1972599,884.33,881.63,1.77655111]
[1757338747530,0.1972599,884.33,881.66,3.29593179]
[1757338749229,1.01735896,884.26,881.68,3.29593179]
[1757338749430,1.01735896,884.22,881.71,3.29593179]
[1757338749630,1.01735896,884.23,881.71,3.29593179]
[1757338749932,0.1972599,884.33,881.82,3.29593179]
[1757338750232,0.1972599,884.33,881.85,3.29593179]
[1757338750929,0.1972599,884.33,881.86,3.29593179]
[1757338751634,0.1972599,884.33,881.85,3.29593179]
[1757338752335,0.1972599,884.33,881.84,3.29593179]
[1757338752734,0.1972599,884.33,881.85,3.29593179]
[1757338753635,0.1972599,884.33,881.84,3.29593179]
[1757338754036,0.1972599,884.33,881.85,3.29593179]
[1757338756637,0.1972599,884.33,881.84,3.29593179]
[1757338757339,0.1972599,884.33,881.83,1.51938068]
[1757338757542,0.1972599,884.33,881.82,3.29593179]
[1757338757740,0.1972599,884.33,881.81,3.29593179]
[1757338759240,1.01735896,884.3,881.81,3.29593179]
[1757338759440,1.01735896,884.22,881.72,3.29593179]
[1757338759638,1.01735896,884.23,881.72,3.29593179]
[1757338759844,1.01735896,884.23,881.73,3.29593179]
[1757338760044,1.01735896,884.24,881.73,3.29593179]
[1757338760244,1.01735896,884.24,881.72,3.29593179]
[1757338760445,1.01735896,884.27,881.72,3.29593179]
[1757338761245,1.01735896,884.26,881.72,3.29593179]
[1757338761641,1.01735896,884.27,881.72,3.29593179]
[1757338762344,1.01735896,884.26,881.72,3.29593179]
[1757338762644,1.01735896,884.27,881.72,3.29593179]
[1757338762841,1.01735896,884.26,881.72,3.29593179]
[1757338763045,1.01735896,884.27,881.72,3.29593179]
[1757338763240,1.01735896,884.26,881.72,3.29593179]
[1757338763445,0.1972599,884.33,881.71,1.77655111]
[1757338767749,0.1972599,884.33,881.69,1.77655111]
[1757338768449,0.1972599,884.33,881.63,1.51938068]
[1757338768450,1.01735896,884.32,881.62,1.77655111]
[1757338769149,1.01735896,884.31,881.62,1.77655111]
[1757338769449,1.01735896,884.3,881.62,1.77655111]
[1757338770147,1.01735896,884.05,881.62,3.29593179]
[1757338770349,1.01735896,884.03,881.62,3.29593179]
[1757338771245,1.01735896,884.01,881.62,3.29593179]
[1757338772251,1.01735896,883.99,881.62,3.29593179]
[1757338772550,1.01735896,884.05,881.62,3.29593179]
[1757338773046,1.01735896,884.06,881.63,3.29593179]
[1757338773345,1.01735896,884.13,881.66,3.29593179]
[1757338773549,1.01735896,884.08,881.66,3.29593179]
[1757338773847,1.01735896,884.19,881.71,3.29593179]
[1757338774047,1.01735896,884.01,881.71,3.29593179]
[1757338774250,1.01735896,883.98,881.71,3.29593179]
[1757338774448,1.01735896,884.06,881.71,3.29593179]
[1757338774852,1.01735896,884.13,881.71,3.29593179]
[1757338775252,1.01735896,884.1,881.71,3.29593179]
[1757338775453,1.01735896,884.13,881.74,3.29593179]
[1757338775948,1.01735896,884.14,881.74,3.29593179]
[1757338776152,1.01735896,884.16,881.77,3.29593179]
[1757338776452,1.01735896,884.07,881.81,3.29593179]
[1757338777253,1.01735896,884.06,881.81,3.29593179]
[1757338777553,1.01735896,884.02,881.8,3.29593179]
[1757338777950,1.01735896,884.03,881.8,3.29593179]
[1757338778250,1.01735896,883.98,881.8,3.29593179]
[1757338778549,1.01735896,883.99,881.8,3.29593179]
[1757338779453,1.01735896,883.97,881.78,3.29593179]
[1757338779651,1.01735896,883.96,881.77,3.29593179]
[1757338779854,1.01735896,884.02,881.77,3.29593179]
[1757338780052,1.01735896,884.0,881.76,3.29593179]
[1757338780255,1.01735896,883.96,881.76,3.29593179]
[1757338781252,1.01735896,883.91,881.76,3.29593179]
[1757338781457,1.01735896,883.91,881.75,3.29593179]
[1757338781757,1.01735896,883.9,881.74,3.29593179]
[1757338782057,1.01735896,883.91,881.74,3.29593179]
[1757338782257,1.01735896,883.85,881.74,3.29593179]
[1757338782559,1.01735896,883.86,881.74,3.29593179]
[1757338782758,1.01735896,883.79,881.73,3.29593179]
[1757338783054,1.01735896,883.75,881.65,3.29593179]
[1757338783258,1.01735896,883.71,881.65,3.29593179]
[1757338783458,1.01735896,883.7,881.65,3.29593179]
[1757338783757,1.01735896,883.69,881.65,3.29593179]
[1757338784361,1.01735896,883.66,881.66,3.29593179]
[1757338785163,1.01735896,883.62,881.66,3.29593179]
[1757338786259,1.01735896,883.69,881.66,3.29593179]
[1757338787364,1.01735896,883.67,881.66,3.29593179]
[1757338787763,1.01735896,883.66,881.66,3.29593179]
[1757338787968,1.01735896,883.64,881.65,3.29593179]
[1757338788264,1.01735896,883.62,881.65,3.29593179]
[1757338788868,1.01735896,883.63,881.65,3.29593179]
[1757338790266,1.01735896,883.62,881.65,3.29593179]
[1757338790965,1.01735896,883.63,881.65,3.29593179]
[1757338791369,1.01735896,883.62,881.65,3.29593179]
[1757338791667,1.01735896,883.61,881.65,3.29593179]
[1757338791869,1.01735896,883.62,881.65,3.29593179]
[1757338792370,1.01735896,883.52,881.66,3.29593179]
[1757338792570,1.01735896,883.52,881.65,3.29593179]
[1757338793766,1.01735896,883.49,881.62,3.29593179]
[1757338794667,1.01735896,883.48,881.62,3.29593179]
[1757338794970,1.01735896,883.5,881.61,3.29593179]
[1757338795266,1.01735896,883.51,881.61,3.29593179]
[1757338795470,1.01735896,883.54,881.61,3.29593179]
[1757338795671,1.01735896,883.66,881.53,3.29593179]
[1757338795870,1.01735896,883.82,881.53,1.77655111]
[1757338796171,1.01735896,883.37,881.36,2.53333722]
[1757338796368,1.01735896,883.33,881.29,2.53333722]
[1757338796671,1.01735896,883.33,881.3,2.53333722]
[1757338796872,1.01735896,883.33,881.29,2.53333722]
[1757338797166,1.01735896,883.34,881.29,2.53333722]
[1757338797671,1.01735896,883.4,881.32,2.53333722]
[1757338798068,1.01735896,883.4,881.3,2.53333722]
[1757338798272,1.01735896,883.44,881.3,2.53333722]
[1757338798674,1.01735896,883.42,881.3,2.53333722]
[1757338798975,0.19756843,882.91,881.3,2.53333722]
[1757338799469,1.01735896,883.15,881.03,2.33573682]
[1757338799670,1.01735896,882.91,881.04,1.51938068]
[1757338799870,1.01735896,882.96,881.06,1.51938068]
[1757338800072,1.01735896,882.98,881.05,1.51938068]
[1757338800275,1.01735896,883.03,881.05,1.51938068]
[1757338800476,1.01735896,883.11,881.05,1.51938068]
[1757338800670,1.01735896,883.15,881.05,1.51938068]
[1757338800872,1.01735896,883.09,881.12,1.51938068]
[1757338801076,1.01735896,883.13,881.14,1.51938068]
[1757338801273,1.01735896,883.19,881.18,1.51938068]
[1757338801471,1.01735896,883.28,881.25,1.51938068]
[1757338801777,1.01735896,883.32,881.25,1.51938068]
[1757338802075,1.01735896,883.31,881.25,1.51938068]
[1757338802272,0.19758245,882.81,881.25,1.51938068]
[1757338802477,0.19758245,882.81,881.24,1.51938068]
[1757338803079,0.19758245,882.81,881.23,1.51938068]
[1757338803580,0.19758245,882.81,881.24,1.51938068]
[1757338804175,0.19758245,882.81,881.23,1.51938068]
[1757338804379,0.19758245,882.81,881.21,1.51938068]
[1757338805175,0.19758245,882.81,881.22,1.51938068]
[1757338805375,0.19758245,882.81,881.25,1.51938068]
[1757338805578,0.19758245,882.81,881.28,1.51938068]
[1757338808080,0.19758245,882.81,881.3,1.51938068]
[1757338808376,0.19758245,882.81,881.41,1.51938068]
[1757338808577,0.19758245,882.81,881.42,1.51938068]
[1757338808780,0.19758245,882.81,881.51,1.51938068]
[1757338809278,0.19758245,882.81,881.5,1.51938068]
[1757338813884,0.19758245,882.81,881.49,1.51938068]
[1757338814385,0.19758245,882.81,881.47,1.51938068]
[1757338815186,0.19758245,882.81,881.36,1.51938068]
[1757338817087,0.19758245,882.81,881.32,1.51938068]
[1757338817986,0.19758245,882.81,881.33,1.51938068]
[1757338818485,0.19758245,882.81,881.32,1.51938068]
[1757338819186,0.19758245,882.81,881.33,1.51938068]
[1757338819386,0.19758245,882.81,881.34,1.51938068]
[1757338819887,0.19758245,882.81,881.37,1.51938068]
[1757338823289,0.19758245,882.81,881.36,1.51938068]
[1757338824384,0.19758245,882.81,881.34,1.51938068]
[1757338824590,0.19758245,882.81,881.35,1.51938068]
[1757338825084,0.19758245,882.81,881.31,1.51938068]
[1757338825986,0.19758245,882.81,881.33,1.51938068]
[1757338826392,0.19758245,882.81,881.36,1.51938068]
[1757338826793,0.19758245,882.81,881.33,1.51938068]
[1757338826994,0.19758245,882.81,881.32,1.51938068]
[1757338827392,0.19758245,882.81,881.33,1.51938068]
[1757338828693,0.19758245,882.81,881.21,1.51938068]
[1757338829394,0.19758245,882.81,881.35,1.01524554]
[1757338831797,0.19758245,882.81,881.34,1.01524554]
[1757338832497,0.19758245,882.81,881.33,1.01524554]
[1757338833093,0.19758245,882.81,881.32,1.01524554]
[1757338834195,0.19758245,882.81,881.31,1.01524554]
[1757338835199,0.19758245,882.81,881.3,1.01524554]
[1757338835494,0.19758245,882.81,881.31,1.01524554]
[1757338835800,0.19758245,882.81,881.3,1.01524554]
[1757338835999,0.19758245,882.81,881.31,1.01524554]
[1757338837502,0.19758245,882.81,881.31,2.53462622]
[1757338838201,0.19758245,882.81,881.27,2.53462622]
[1757338838399,1.01735896,883.24,881.02,2.3370376]
[1757338838797,1.01735896,883.23,881.02,2.3370376]
[1757338839101,1.01735896,883.24,881.02,2.3370376]
[1757338839301,1.01735896,883.23,881.02,2.3370376]
[1757338840401,1.01735896,883.21,881.02,2.3370376]
[1757338840602,1.01735896,883.2,881.02,2.3370376]
[1757338841602,0.19762341,882.66,881.02,2.3370376]
[1757338842503,0.19762341,882.66,881.01,1.01524554]
[1757338844800,0.19762341,882.66,881.02,1.01524554]
[1757338847406,0.19762341,882.66,881.04,1.01524554]
[1757338847610,0.19762341,882.66,881.13,1.01524554]
[1757338847806,0.19762341,882.66,881.12,1.01524554]
[1757338848811,0.19762341,882.66,881.11,1.01524554]
[1757338852708,0.19762341,882.66,881.12,1.01524554]
[1757338853613,0.19762341,882.66,881.11,1.01524554]
[1757338855611,0.19762341,882.66,881.12,1.01524554]
[1757338855813,0.19762341,882.66,881.17,1.01524554]
[1757338856012,0.19762341,882.66,881.17,1.77854324]
[1757338857621,0.19762341,882.66,881.18,1.77854324]
[1757338857821,0.19762341,882.66,881.17,1.01524554]
[1757338858124,0.19762341,882.66,881.17,1.77853198]
[1757338858421,0.19762341,882.66,881.17,3.30508998]
[1757338858921,0.19762341,882.66,881.18,3.30508998]
[1757338859125,0.19762341,882.66,881.17,3.30508998]
[1757338859625,0.19762341,882.66,881.18,3.30508998]
[1757338859826,0.19762341,882.66,881.2,3.30508998]
[1757338863831,0.19762341,882.66,881.2,1.77853198]
[1757338864128,0.19762341,882.66,881.2,3.30508998]
[1757338864527,0.19762341,882.66,881.2,3.30503294]
[1757338864832,0.19762341,882.66,881.2,1.77847494]
[1757338865532,0.19762341,882.66,881.21,1.77847494]
[1757338865827,0.19762341,882.66,881.24,3.30503294]
[1757338866032,0.19762341,882.66,881.27,3.30503294]
[1757338866232,0.19762341,882.66,881.29,3.30503294]
[1757338866926,0.19762341,882.66,881.28,1.77847494]
[1757338867431,0.19762341,882.66,881.37,1.77847494]
[1757338867627,0.19762341,882.66,881.4,1.77847494]
[1757338868328,0.19762341,882.66,881.41,1.77847494]
[1757338868527,0.19762341,882.66,881.42,1.77847494]
[1757338868732,0.19762341,882.66,881.41,1.77847494]
[1757338869229,0.19762341,882.66,881.45,1.77847494]
[1757338869428,0.19762341,882.66,881.49,1.77847494]
[1757338873133,0.19762341,882.66,881.51,3.30503294]
[1757338873330,0.19762341,882.66,881.56,3.30503294]
[1757338875833,0.19762341,882.66,881.6,3.30503294]
[1757338876634,0.19762341,882.66,881.61,3.30503294]
[1757338877334,0.19762341,882.66,881.71,3.30503294]
[1757338877534,0.19762341,882.66,881.72,3.30503294]
[1757338877835,0.19762341,882.66,881.87,3.30503294]
[1757338878932,0.19762341,882.66,881.8,3.30503294]
[1757338879138,0.19762341,882.66,881.81,3.30503294]
[1757338880436,0.19762341,882.66,881.82,3.30503294]
[1757338881136,0.19762341,882.66,881.83,3.30503294]
[1757338881334,0.19762341,882.66,881.92,3.30503294]
[1757338882233,0.19762341,882.66,881.91,3.30503294]
[1757338882834,0.19762341,882.66,881.9,3.30503294]
[1757338883133,0.19762341,882.66,881.91,3.30503294]
[1757338884434,0.19762341,882.66,881.93,3.30503294]
[1757338884738,0.19762341,882.66,881.96,3.30503294]
[1757338884939,0.19762341,882.66,881.98,3.30503294]
[1757338885434,0.19762341,882.66,882.05,3.30503294]
[1757338891142,0.19762341,882.66,882.06,3.30503294]
[1757338891438,0.19762341,882.66,882.05,3.30503294]
[1757338895039,0.19762341,882.66,882.06,3.30503294]
[1757338895441,0.19762341,882.66,882.05,3.30503294]
[1757338897743,0.19762341,882.66,882.06,3.30503294]
[1757338897943,0.19762341,882.66,882.05,3.30503294]
[1757338898246,0.19762341,882.66,882.06,3.30503294]
[1757338898446,0.19762341,882.66,882.15,3.30503294]
[1757338898644,0.19762341,882.66,882.17,3.30503294]
[1757338901746,0.19762341,882.66,882.22,3.30503294]
[1757338903650,0.19762341,882.66,882.21,3.30503294]
[1757338903843,0.19762341,882.66,882.22,3.30503294]
[1757338905944,0.19762341,882.66,882.26,3.30503294]
[1757338907148,0.19762341,882.66,882.25,3.30503294]
[1757338908248,0.19762341,882.66,882.24,1.77847494]
[1757338908545,0.19762341,882.66,882.23,1.77847494]
[1757338908750,0.19762341,882.66,882.26,1.77847494]
[1757338908946,0.19762341,882.66,882.25,1.77847494]
[1757338910444,0.19762341,882.66,882.29,3.30503294]
[1757338911951,0.19762341,882.66,882.3,3.30503294]
[1757338912648,0.19762341,882.66,882.31,3.30503294]
[1757338912848,0.19762341,882.66,882.34,1.77847494]
[1757338913050,0.19762341,882.66,882.35,1.77847494]
[1757338913551,0.19762341,882.66,882.38,1.77847494]
[1757338917254,0.19762341,882.66,882.36,1.77847494]
[1757338917753,0.19762341,882.66,882.33,3.30503294]
[1757338918048,0.19762341,882.66,882.34,3.30503294]
[1757338920254,0.19762341,882.66,882.35,3.30503294]
[1757338920551,0.19762341,882.66,881.4,2.5227016]
[1757338920552,0.19762341,882.66,882.39,3.30503294]
[1757338921455,0.19762341,882.66,882.38,3.30503294]
[1757338921652,0.19762341,882.66,882.39,3.30503294]
[1757338922252,0.19762341,882.66,881.41,3.5317822]
[1757338922253,0.19762341,882.66,882.38,3.30503294]
[1757338922655,0.19762341,882.66,882.35,3.30503294]
[1757338922852,0.19762341,882.66,882.34,3.30503294]
[1757338923056,0.19762341,882.66,882.36,3.30503294]
[1757338924055,0.19762341,882.66,882.35,3.30503294]
[1757338924458,0.19762341,882.66,882.33,3.30503294]
[1757338925155,0.19762341,882.66,882.34,3.30503294]
[1757338927157,0.19762341,882.66,882.37,3.30503294]
[1757338927358,0.19762341,882.66,882.45,3.30503294]
[1757338927867,0.19762341,882.66,882.46,3.30503294]
[1757338928062,0.19762341,882.66,882.47,3.30503294]
[1757338928357,0.19762341,882.66,882.5,3.30503294]
[1757338928559,0.19762341,882.66,882.52,3.30503294]
[1757338929062,0.19762341,882.66,882.51,3.30503294]
[1757338932664,0.19762341,882.66,882.56,3.30503294]
[1757338935665,0.19762341,882.66,882.42,3.30503294]
[1757338935964,0.19762341,882.66,882.41,3.30503294]
[1757338936470,0.19762341,882.66,882.31,3.30503294]
[1757338936667,0.19762341,882.66,882.32,3.30503294]
[1757338937567,0.19762341,882.66,882.34,3.30503294]
[1757338938269,0.19762341,882.66,882.33,3.30503294]
[1757338938667,0.19762341,882.66,882.34,3.30503294]
[1757338939169,0.19762341,882.66,882.33,3.30503294]
[1757338940365,0.19762341,882.66,882.37,1.77847494]
[1757338940668,0.19762341,882.66,882.37,3.30503294]
[1757338943067,0.19762341,882.66,881.95,2.5227016]
[1757338943068,0.19762341,882.66,882.4,3.30503294]
[1757338943969,0.19762341,882.66,882.39,3.30503294]
[1757338947075,0.19762341,882.66,881.84,2.5227016]
[1757338947076,0.19762341,882.66,882.38,3.30503294]
[1757338947376,0.19762341,882.66,882.35,3.30503294]
[1757338948674,0.19762341,882.66,882.36,3.30503294]
[1757338955981,0.19762341,882.66,882.35,3.30503294]
[1757338956184,0.19762341,882.66,882.36,3.30503294]
[1757338959882,0.19762341,882.66,882.37,3.30503294]
[1757338960084,0.19762341,882.66,882.38,3.30503294]
[1757338960284,0.19762341,882.66,882.41,3.30503294]
[1757338960683,0.19762341,882.66,882.45,3.30503294]
[1757338961283,0.19762341,882.66,882.49,3.30503294]
[1757338962483,0.19762341,882.66,882.5,3.30503294]
[1757338963487,0.19762341,882.66,882.49,3.30503294]
[1757338964687,0.19762341,882.66,882.47,3.30503294]
[1757338964889,0.19762341,882.66,882.48,3.30503294]
[1757338970687,0.19762341,882.66,882.47,3.30503294]
[1757338970986,0.19762341,882.66,882.42,3.30503294]